bitfinex/quotes_ETHUSD_20251116
["timestamp","ask_amount","ask_price","bid_price","bid_amount"]
[1763327736590,0.3039,3078.6,3078.0,0.001]
[1763327737298,0.799,3078.6,3078.0,0.001]
[1763327738977,0.4951,3078.5,3078.0,0.001]
[1763327740470,0.466,3078.1,3078.0,0.001]
[1763327740984,0.191,3078.7,3078.0,0.001]
[1763327740985,0.6861,3078.7,3078.0,0.001]
[1763327741179,0.6861,3078.7,3078.0,0.4849]
[1763327741375,0.191,3078.7,3078.0,0.001]
[1763327741675,0.466,3078.1,3078.0,0.001]
[1763327742110,0.9611,3078.1,3078.0,0.001]
[1763327742987,1.366604,3078.1,3078.0,0.001]
[1763327743293,0.6554,3077.8,3077.5,0.001]
[1763327743604,0.3132,3077.6,3077.5,0.001]
[1763327744007,0.8083,3077.6,3077.5,0.001]
[1763327744922,1.213804,3077.6,3077.5,0.001]
[1763327745097,0.8083,3077.6,3077.5,0.001]
[1763327746615,1.213804,3077.6,3077.5,0.001]
[1763327747012,1.213804,3077.6,3077.2,0.001]
[1763327747331,0.4629,3077.3,3077.2,0.001]
[1763327747925,0.958,3077.3,3077.2,0.001]
[1763327748332,1.363504,3077.3,3077.2,0.001]
[1763327750653,0.958,3077.3,3077.2,0.001]
[1763327751519,0.4719,3077.6,3077.2,0.001]
[1763327752932,0.4777,3077.3,3077.2,0.001]
[1763327753134,0.9496,3077.3,3077.2,0.001]
[1763327754257,0.4777,3077.3,3077.2,0.001]
[1763327755420,0.002,3077.5,3077.2,0.001]
[1763327755829,0.4777,3077.3,3077.2,0.001]
[1763327756339,0.9496,3077.3,3077.2,0.001]
[1763327761614,0.002,3077.5,3077.2,0.5964]
[1763327761763,0.002,3077.5,3077.4,0.4544]
[1763327762093,0.002,3077.5,3077.2,0.142]
[1763327762441,0.002,3077.5,3077.4,0.4544]
[1763327762681,0.002,3077.9,3077.4,1.31786103]
[1763327762866,0.002,3077.9,3077.5,0.4702]
[1763327763261,0.002,3077.9,3077.8,0.4544]
[1763327763896,0.002,3077.9,3077.8,0.9246]
[1763327766498,0.002,3077.9,3077.8,0.4544]
[1763327766699,0.002,3077.9,3077.4,1.33366103]
[1763327766904,0.6734,3077.9,3077.2,0.142]
[1763327767199,0.2015,3077.9,3077.2,0.001]
[1763327767379,0.4719,3077.8,3077.2,0.001]
[1763327767579,0.4777,3077.3,3077.2,0.001]
[1763327767906,0.4719,3077.8,3077.2,0.001]
[1763327769965,0.002,3077.9,3077.2,0.001]
[1763327770166,0.002,3077.9,3077.2,0.4712]
[1763327771404,0.002,3077.9,3077.8,0.4544]
[1763327772004,0.002,3077.9,3077.4,0.4702]
[1763327772452,0.002,3077.9,3077.8,0.4544]
[1763327772927,0.002,3077.9,3077.8,0.9246]
[1763327774813,0.002,3077.9,3077.5,0.001]
[1763327775015,0.002,3077.9,3077.8,0.4544]
[1763327775506,0.002,3077.9,3077.5,0.001]
[1763327776090,0.002,3077.9,3077.5,0.4775]
[1763327776713,0.002,3077.9,3077.8,0.4502]
[1763327777216,0.002,3077.9,3077.8,0.9267]
[1763327778111,0.002,3077.9,3077.8,1.332204]
[1763327778477,0.002,3078.2,3077.9,0.405504]
[1763327778679,0.002,3078.2,3078.1,9.19641942]
[1763327778878,0.002,3078.6,3078.3,0.405504]
[1763327779112,0.002,3078.6,3078.5,0.855704]
[1763327779609,0.002,3078.6,3078.5,1.332204]
[1763327782105,0.002,3078.6,3078.5,1.319504]
[1763327783021,0.002,3078.6,3078.5,0.4502]
[1763327783320,0.002,3078.6,3078.2,1.5975408]
[1763327783523,0.002,3078.6,3078.3,0.88045154]
[1763327784195,0.002,3078.6,3078.5,0.4906]
[1763327785401,0.4908,3078.4,3077.6,7.05617462]
[1763327785588,0.4908,3078.4,3077.6,7.51997462]
[1763327785787,0.4908,3078.4,3077.7,1.1337408]
[1763327785987,0.002,3078.6,3077.6,7.51997462]
[1763327786998,0.002,3078.6,3078.5,0.6414]
[1763327787193,0.002,3078.6,3078.1,7.05617462]
[1763327787393,0.002,3078.6,3078.2,0.70561746]
[1763327792513,0.002,3078.6,3078.5,0.4906]
[1763327793036,0.002,3078.6,3078.5,1.359904]
[1763327793735,0.002,3078.6,3078.5,1.49009347]
[1763327794512,0.002,3079.0,3078.6,0.405504]
[1763327794713,0.002,3079.3,3079.0,1.5392448]
[1763327794919,0.002,3079.3,3079.2,1.050404]
[1763327795132,0.002,3079.3,3079.2,1.514204]
[1763327796923,0.002,3079.3,3079.2,0.6449]
[1763327797553,0.002,3079.3,3079.2,1.1087]
[1763327797756,0.002,3079.3,3079.2,1.33294408]
[1763327799078,0.002,3079.3,3079.2,0.86914408]
[1763327799242,0.002,3079.3,3079.2,1.1337408]
[1763327799768,0.002,3079.3,3079.1,3.88]
[1763327801861,0.002,3079.3,3079.2,2.4936448]
[1763327802832,0.002,3079.3,3079.2,1.6243408]
[1763327803172,0.002,3079.3,3079.2,1.1337408]
[1763327803665,0.002,3079.3,3079.2,1.6243408]
[1763327803829,0.002,3079.3,3079.2,1.78677488]
[1763327805562,0.002,3079.3,3079.2,2.25057488]
[1763327805766,0.002,3079.6,3079.2,2.25057488]
[1763327805767,0.002,3079.6,3079.3,0.405504]
[1763327805966,0.002,3079.6,3079.5,9.08601942]
[1763327806287,0.002,3079.6,3079.5,10.04100136]
[1763327806471,0.002,3079.6,3079.5,10.50480136]
[1763327807253,0.002,3079.6,3079.5,14.38480136]
[1763327807447,0.002,3079.6,3079.5,13.51549736]
[1763327808031,0.002,3079.6,3079.5,14.38480136]
[1763327809437,0.002,3079.6,3079.5,14.51495186]
[1763327809639,0.002,3079.6,3079.5,14.38480136]
[1763327809838,0.002,3079.6,3079.5,13.92100136]
[1763327810581,0.002,3079.6,3079.5,5.96872274]
[1763327810749,0.002,3079.6,3079.5,5.0137408]
[1763327811981,0.002,3079.6,3079.5,1.1337408]
[1763327812182,0.4735,3079.6,3079.5,1.1337408]
[1763327814286,0.002,3079.6,3079.5,1.1337408]
[1763327814948,0.4735,3079.6,3079.5,1.1337408]
[1763327815583,0.002,3079.6,3079.5,1.1337408]
[1763327816485,0.002,3079.6,3079.2,0.16243408]
[1763327816486,0.4735,3079.6,3079.2,0.16243408]
[1763327816646,0.2378,3079.3,3079.1,1.1337408]
[1763327816851,0.4711,3079.6,3079.2,0.81909154]
[1763327817379,0.4711,3079.6,3079.5,0.4848]
[1763327817380,0.002,3079.6,3079.5,0.4848]
[1763327817796,0.002,3079.6,3079.5,9.17131542]
[1763327819065,0.002,3079.6,3079.5,9.57681942]
[1763327821402,0.002,3080.0,3079.6,1.5392448]
[1763327821569,0.002,3080.0,3079.9,0.890304]
[1763327822099,0.002,3080.0,3079.9,1.386904]
[1763327822314,0.002,3080.3,3080.2,8.59541942]
[1763327822609,0.002,3080.3,3080.2,9.08021942]
[1763327822804,0.002,3080.3,3080.2,9.97912345]
[1763327822966,0.002,3080.3,3080.2,10.99162579]
[1763327823170,0.002,3080.3,3080.2,14.58801701]
[1763327823408,0.002,3080.3,3080.2,2.95405117]
[1763327823595,0.002,3080.3,3080.2,2.5206448]
[1763327825769,0.002,3080.4,3080.2,2.5206448]
[1763327825770,0.002,3080.4,3080.3,1.1337408]
[1763327825971,0.002,3080.4,3080.3,0.890304]
[1763327826487,0.002,3080.4,3080.1,1.2796408]
[1763327826693,0.002,3080.4,3080.2,0.405504]
[1763327826897,0.002,3080.4,3080.3,0.16851448]
[1763327829004,0.002,3080.4,3080.3,7.72754003]
[1763327829590,0.002,3080.4,3080.3,11.60754003]
[1763327829769,0.002,3080.4,3080.3,12.09234003]
[1763327832970,0.002,3080.4,3080.3,11.60754003]
[1763327833175,0.9426,3080.4,3080.0,3.88]
[1763327833474,0.2647,3080.2,3080.1,1.1337408]
[1763327833781,0.4691,3080.3,3080.1,1.1337408]
[1763327834012,0.4691,3080.3,3080.0,3.88]
[1763327834013,0.4715,3080.2,3080.0,3.88]
[1763327834218,0.2647,3080.1,3079.3,0.001]
[1763327834427,0.002,3080.4,3079.3,0.001]
[1763327834428,0.655,3079.4,3079.3,0.001]
[1763327834777,1.1241,3079.4,3079.3,0.001]
[1763327841030,0.4715,3079.4,3079.3,0.001]
[1763327841248,0.9538,3079.4,3079.3,0.001]
[1763327841945,0.4715,3079.4,3079.3,0.001]
[1763327842151,0.002,3080.4,3079.3,2.0787408]
[1763327842152,0.4823,3080.2,3079.3,2.0787408]
[1763327842325,0.002,3080.4,3079.8,1.1337408]
[1763327843652,0.002,3080.3,3079.8,1.1337408]
[1763327844009,0.002,3080.3,3079.8,1.5930408]
[1763327844209,0.002,3080.3,3079.8,1.1337408]
[1763327844450,0.002,3080.3,3079.9,0.75590256]
[1763327844751,0.642,3079.9,3079.8,1.1337408]
[1763327845051,0.642,3079.9,3079.3,6.42628475]
[1763327845224,0.2645,3079.8,3079.3,6.42628475]
[1763327845423,0.2645,3079.8,3079.4,1.1337408]
[1763327845748,0.6714,3079.9,3079.4,1.1337408]
[1763327845749,0.4823,3079.7,3079.4,1.1337408]
[1763327845949,0.4529,3079.5,3079.3,0.001]
[1763327846111,0.4823,3079.7,3079.3,0.001]
[1763327847034,0.1891,3079.9,3079.3,0.001]
[1763327847954,0.4529,3079.4,3079.3,0.001]
[1763327848114,0.4823,3079.8,3079.3,0.001]
[1763327851130,0.4529,3079.4,3079.3,0.001]
[1763327851322,0.4823,3079.8,3079.3,0.001]
[1763327851834,0.4529,3079.4,3079.3,0.001]
[1763327852336,0.9352,3079.4,3079.3,0.001]
[1763327854424,0.4529,3079.4,3079.3,0.001]
[1763327854631,0.4823,3079.7,3079.3,0.001]
[1763327855159,0.1891,3079.9,3079.3,0.001]
[1763327855455,0.4823,3079.8,3079.3,0.001]
[1763327857164,0.002,3080.3,3079.4,6.42528475]
[1763327857368,0.4843,3080.3,3079.5,5.65636928]
[1763327858648,0.642,3079.6,3079.5,5.0137408]
[1763327858828,0.642,3079.6,3079.5,1.1337408]
[1763327859035,1.1243,3079.6,3079.3,0.001]
[1763327859234,0.4529,3079.4,3079.3,0.001]
[1763327859459,0.9352,3079.4,3079.3,0.001]
[1763327865953,0.1891,3079.6,3079.3,0.001]
[1763327866154,0.4529,3079.4,3079.3,0.001]
[1763327866748,0.9352,3079.4,3079.3,0.001]
[1763327867444,0.1891,3079.9,3079.3,0.6316]
[1763327867773,0.002,3080.3,3079.5,1.6184408]
[1763327867956,0.002,3080.3,3079.8,6.90998475]
[1763327868146,0.4843,3080.3,3079.8,6.90998475]
[1763327868342,0.4843,3080.3,3079.6,0.80437255]
[1763327868343,0.642,3079.9,3079.6,0.80437255]
[1763327868540,0.642,3079.9,3079.5,1.1337408]
[1763327868541,0.2645,3079.7,3079.5,1.1337408]
[1763327868747,0.451,3079.6,3079.5,1.1337408]
[1763327868960,0.1891,3079.9,3079.3,0.001]
[1763327869175,0.4843,3080.3,3079.5,1.1337408]
[1763327869471,0.4843,3080.3,3079.5,1.93567335]
[1763327870264,0.4843,3080.3,3079.5,1.1337408]
[1763327872088,0.002,3080.3,3079.5,1.1337408]
[1763327872551,0.002,3080.3,3079.5,1.5957408]
[1763327872895,0.002,3080.3,3079.5,1.1337408]
[1763327873103,0.002,3080.3,3080.2,8.03162555]
[1763327873394,0.002,3080.3,3080.2,8.9848881]
[1763327873951,0.00017,3080.3,3080.2,8.9848881]
[1763327877464,0.00017,3080.3,3080.2,8.8347881]
[1763327879292,0.002,3080.8,3080.2,8.8347881]
[1763327879293,0.002,3080.8,3080.3,2.4738448]
[1763327879613,0.002,3080.8,3080.6,8.03162555]
[1763327879785,0.002,3080.8,3080.6,8.8347881]
[1763327879986,0.4828,3080.7,3080.6,1.93690335]
[1763327880183,0.002,3080.7,3080.6,1.1337408]
[1763327880811,0.002,3080.7,3080.6,8.03162555]
[1763327881212,0.002,3080.7,3080.6,8.49362555]
[1763327881914,0.002,3080.7,3080.6,8.03162555]
[1763327882116,0.9536,3080.7,3080.6,1.1337408]
[1763327883016,0.002,3080.7,3080.6,1.1337408]
[1763327883182,0.002,3080.7,3080.6,8.03162555]
[1763327883389,0.002,3080.7,3080.6,8.3621881]
[1763327883590,0.4828,3080.7,3080.6,8.3621881]
[1763327883784,0.002,3080.7,3080.6,8.8347881]
[1763327884492,0.4828,3080.7,3080.6,1.1337408]
[1763327885014,0.9536,3080.7,3080.6,1.1337408]
[1763327885257,0.9536,3080.7,3079.8,10.30528475]
[1763327885459,0.9536,3080.7,3079.5,0.463]
[1763327885460,0.2352,3080.3,3079.5,6.42628475]
[1763327885660,0.4708,3080.6,3079.6,1.03062847]
[1763327885813,0.4708,3080.6,3079.6,2.16436927]
[1763327887045,0.6774,3079.7,3079.5,0.001]
[1763327887246,0.4708,3080.6,3079.5,0.001]
[1763327887448,0.4708,3080.5,3079.5,0.001]
[1763327888248,0.6774,3079.6,3079.5,0.001]
[1763327888624,1.1482,3079.6,3079.5,0.001]
[1763327889359,0.6674,3079.9,3079.5,0.001]
[1763327889661,0.002,3080.7,3079.5,0.001]
[1763327889662,0.4708,3080.6,3079.5,0.001]
[1763327889951,0.6774,3079.6,3079.5,0.001]
[1763327891049,0.4708,3079.9,3079.5,0.4736]
[1763327891050,0.1966,3079.9,3079.5,0.4736]
[1763327891359,0.4808,3079.6,3079.5,0.001]
[1763327892838,0.9516,3079.6,3079.5,0.001]
[1763327893035,0.1966,3079.9,3079.5,0.001]
[1763327893756,0.4708,3080.3,3079.5,0.001]
[1763327893945,0.4708,3080.3,3079.5,1.5967408]
[1763327894144,0.4708,3080.3,3079.5,1.1347408]
[1763327895128,0.4808,3079.6,3079.5,1.1347408]
[1763327895636,0.1966,3079.8,3079.5,1.1347408]
[1763327896268,0.4708,3080.0,3079.5,1.63631488]
[1763327896678,0.002,3080.7,3079.9,0.4502]
[1763327896849,0.002,3080.7,3080.0,1.1337408]
[1763327897459,0.002,3080.7,3080.1,0.1501]
[1763327897661,0.4887,3080.7,3080.0,1.1337408]
[1763327897843,0.4887,3080.7,3080.1,0.81807922]
[1763327898164,0.4887,3080.7,3080.1,0.96817922]
[1763327899741,0.002,3080.7,3080.1,0.96817922]
[1763327901893,0.002,3080.7,3080.6,0.4502]
[1763327902392,0.002,3080.7,3080.6,0.9391]
[1763327902690,0.002,3080.7,3080.6,1.85108922]
[1763327902890,0.002,3080.7,3080.6,0.91198922]
[1763327902891,0.468,3080.7,3080.6,0.91198922]
[1763327903092,0.468,3080.7,3080.1,2.10192002]
[1763327903296,0.002,3080.7,3080.6,0.4557]
[1763327903598,0.002,3080.7,3080.6,0.861204]
[1763327903792,0.002,3080.7,3080.6,2.25430362]
[1763327905700,0.002,3080.7,3080.6,7.26804442]
[1763327907073,0.002,3080.8,3080.7,1.5392448]
[1763327907372,0.002,3080.8,3080.7,2.4838448]
[1763327910800,0.002,3080.9,3080.7,2.4838448]
[1763327910801,10.31,3083.9,3081.6,0.4557]
[1763327911010,10.31,3083.9,3081.2,0.1501]
[1763327911011,0.4938,3083.8,3082.8,9.19279624]
[1763327911420,0.1989,3084.1,3082.8,9.68169624]
[1763327911597,0.1989,3084.1,3082.9,1.5392448]
[1763327911788,0.1989,3084.1,3083.1,0.861204]
[1763327912140,0.468,3083.2,3082.5,1.5392448]
[1763327912301,0.468,3083.2,3083.1,0.4557]
[1763327912302,0.002,3083.2,3083.1,0.4557]
[1763327912703,0.002,3083.2,3083.0,1.1337408]
[1763327913094,0.466,3083.1,3083.0,1.1337408]
[1763327913592,0.9598,3083.1,3083.0,1.1337408]
[1763327914188,0.002,3083.2,3083.0,2.40752002]
[1763327914394,0.002,3083.2,3083.1,0.4557]
[1763327914933,0.9618,3083.2,3082.4,7.04705144]
[1763327915118,0.9618,3083.2,3082.1,0.1459]
[1763327915119,0.4958,3083.2,3082.1,0.1459]
[1763327915323,0.4938,3083.1,3082.1,0.91408514]
[1763327915725,0.002,3083.2,3082.9,7.04705144]
[1763327915926,0.002,3083.2,3082.5,1.1337408]
[1763327915927,0.4938,3083.1,3082.3,1.1337408]
[1763327916437,0.002,3083.2,3082.5,1.1337408]
[1763327916603,0.002,3083.2,3083.1,0.4557]
[1763327916805,0.002,3083.2,3082.8,7.04705144]
[1763327916806,0.002,3083.2,3082.9,1.1337408]
[1763327917041,0.466,3083.0,3082.9,1.1337408]
[1763327917540,0.466,3083.0,3082.6,0.50137408]
[1763327917748,0.466,3083.0,3082.4,1.1337408]
[1763327917905,0.1988,3082.7,3082.1,0.76818514]
[1763327918230,0.6897,3082.9,3082.2,0.405504]
[1763327918437,0.6897,3082.9,3082.1,0.1459]
[1763327918856,0.4938,3082.8,3082.1,1.1337408]
[1763327919140,0.4938,3082.8,3082.0,7.04705144]
[1763327919306,0.4938,3082.8,3081.6,1.1337408]
[1763327919307,0.1988,3082.1,3081.6,1.1337408]
[1763327919501,0.1988,3082.1,3081.7,0.81807922]
[1763327919740,0.4938,3082.0,3081.5,7.04705144]
[1763327919935,0.1988,3082.1,3081.6,1.1337408]
[1763327920137,0.4938,3082.8,3082.0,7.50275144]
[1763327920336,0.4938,3082.8,3082.0,7.04705144]
[1763327921138,0.4938,3082.8,3081.5,7.45255544]
[1763327921313,0.4938,3082.8,3081.6,0.74525554]
[1763327921904,0.4938,3082.8,3081.7,0.405504]
[1763327922837,0.4938,3082.8,3081.6,2.36789634]
[1763327924833,0.4938,3082.8,3081.6,1.87899634]
[1763327925034,0.466,3081.7,3081.5,7.04705144]
[1763327925313,0.4938,3082.8,3081.6,1.1337408]
[1763327925522,0.4938,3082.8,3081.6,2.0783408]
[1763327925927,0.4938,3082.8,3081.6,1.5894408]
[1763327926143,0.4938,3082.8,3081.7,0.86364922]
[1763327926546,0.4938,3082.8,3082.0,7.04705144]
[1763327926742,0.4938,3082.8,3082.1,1.2796408]
[1763327926934,0.4938,3082.8,3082.1,1.1337408]
[1763327927250,0.4938,3082.8,3081.7,1.99739002]
[1763327927251,0.466,3082.2,3081.7,1.99739002]
[1763327927551,0.1959,3082.9,3081.8,1.076639]
[1763327927749,0.4938,3082.7,3081.8,0.587739]
[1763327929956,0.4938,3082.7,3082.0,0.001]
[1763327931257,0.1959,3082.9,3082.1,1.2796408]
[1763327931640,0.4535,3082.8,3082.1,1.2796408]
[1763327931952,0.4535,3082.8,3082.1,2.11241002]
[1763327932116,0.4535,3082.8,3082.1,5.99241002]
[1763327932527,0.4535,3082.8,3082.1,5.0137408]
[1763327932727,0.4535,3082.8,3082.0,7.04805144]
[1763327932728,0.4547,3082.2,3082.0,0.001]
[1763327933064,0.2499,3082.1,3082.0,0.001]
[1763327933425,0.7034,3082.1,3082.0,0.001]
[1763327934358,0.6485,3081.8,3081.4,0.001]
[1763327934558,0.4547,3081.5,3081.4,0.001]
[1763327935123,0.9082,3081.5,3081.4,0.001]
[1763327939948,0.4547,3081.5,3081.4,0.001]
[1763327940742,0.1958,3081.8,3081.4,0.001]
[1763327941056,0.4535,3081.7,3081.4,0.001]
[1763327941228,0.4547,3081.5,3081.4,0.001]
[1763327941921,0.9082,3081.5,3081.4,0.001]
[1763327942328,0.1958,3081.8,3081.4,0.001]
[1763327942629,0.4547,3081.5,3081.4,0.001]
[1763327942828,0.1958,3081.8,3081.4,0.001]
[1763327943125,0.4535,3081.8,3081.4,0.001]
[1763327943332,0.4547,3081.5,3081.4,0.001]
[1763327943755,0.9082,3081.5,3081.4,0.001]
[1763327946752,0.405504,3081.4,3079.7,0.001]
[1763327946974,0.2529,3080.4,3079.7,0.001]
[1763327947183,0.859004,3081.4,3079.7,0.001]
[1763327947184,0.6485,3080.1,3079.7,0.001]
[1763327947572,1.102,3080.1,3079.7,0.001]
[1763327951058,0.1958,3080.4,3079.7,0.001]
[1763327951271,0.4547,3080.1,3079.7,0.001]
[1763327951794,0.9082,3080.1,3079.7,0.001]
[1763327954898,0.4547,3080.1,3079.7,0.001]
[1763327955618,0.9082,3080.1,3079.7,0.001]
[1763327956387,0.1958,3081.0,3080.0,0.9946]
[1763327956650,0.1832,3080.9,3080.3,1.6291408]
[1763327956800,0.6794,3080.9,3080.1,0.36293408]
[1763327957127,0.49,3080.2,3080.0,0.001]
[1763327957300,0.405504,3080.8,3080.0,0.001]
[1763327957301,0.612304,3080.1,3080.0,0.001]
[1763327957500,0.6732,3079.8,3079.5,0.001]
[1763327957699,0.2096,3079.6,3079.5,0.001]
[1763327958201,1.111304,3079.6,3079.5,0.001]
[1763327959143,1.111304,3079.6,3078.9,0.001]
[1763327959144,0.4834,3079.4,3078.9,0.001]
[1763327959431,0.405504,3078.3,3076.9,0.01408998]
[1763327959595,0.405504,3077.5,3075.4,0.01498428]
[1763327959797,0.6794,3076.8,3074.9,0.4982]
[1763327960226,0.4962,3076.7,3074.3,6.4321707]
[1763327960449,0.4962,3076.7,3074.4,0.64321707]
[1763327960651,0.05,3076.6,3074.4,1.14141707]
[1763327961148,0.4962,3076.5,3074.4,1.14141707]
[1763327961723,0.405504,3076.4,3074.4,2.27515787]
[1763327961926,0.405504,3076.4,3074.5,0.87073286]
[1763327962248,0.405504,3076.2,3074.5,0.87073286]
[1763327962759,0.486,3076.1,3074.8,6.4321707]
[1763327962958,0.486,3076.5,3074.9,1.1337408]
[1763327963159,0.1832,3076.8,3075.7,1.1337408]
[1763327963457,0.9963612,3076.7,3075.8,0.75659115]
[1763327963754,0.9963612,3076.7,3074.5,1.27623686]
[1763327963755,0.405504,3076.6,3074.5,0.87073286]
[1763327963960,0.891504,3076.6,3074.4,0.499]
[1763327964425,0.405504,3076.4,3074.4,0.499]
[1763327964949,0.5603612,3076.7,3073.0,0.1469]
[1763327964950,1.5892448,3076.2,3073.5,6.4321707]
[1763327965155,0.405504,3075.6,3073.3,0.1515]
[1763327965354,0.405504,3075.4,3073.3,0.6505]
[1763327965741,0.486,3075.3,3073.3,0.6505]
[1763327966053,0.405504,3075.2,3073.4,6.9311707]
[1763327966556,0.405504,3075.0,3074.4,0.001]
[1763327966758,1.059804,3074.5,3073.0,0.1469]
[1763327966979,0.405504,3074.4,3074.0,0.001]
[1763327967255,0.2586,3074.1,3074.0,0.001]
[1763327967429,0.664104,3074.1,3074.0,0.001]
[1763327967630,1.150104,3074.1,3074.0,0.001]
[1763327967856,0.7446,3074.1,3074.0,0.001]
[1763327968063,1.150104,3074.1,3074.0,0.001]
[1763327968637,0.001,3074.0,3073.7,0.001]
[1763327968863,0.487,3074.0,3073.7,0.001]
[1763327969060,0.1801,3073.9,3073.7,0.001]
[1763327969434,0.487,3074.0,3073.7,0.001]
[1763327969435,0.001,3074.0,3073.7,0.001]
[1763327970141,0.486,3073.9,3073.7,0.001]
[1763327970331,0.4742,3073.8,3073.7,0.001]
[1763327971065,1.365704,3073.8,3073.7,0.001]
[1763327971737,1.365704,3073.8,3072.2,0.1469]
[1763327971940,0.405504,3073.6,3072.2,1.7796408]
[1763327972238,0.001,3073.6,3072.3,0.82118115]
[1763327972537,0.487,3073.6,3072.3,0.82118115]
[1763327972743,0.487,3073.6,3072.4,0.499]
[1763327972969,0.001,3073.6,3072.4,0.499]
[1763327973479,0.487,3073.6,3072.4,0.499]
[1763327973639,0.487,3073.6,3072.4,0.7590822]
[1763327974151,0.487,3073.6,3072.5,0.499]
[1763327974333,0.405504,3073.5,3072.2,0.1469]
[1763327974539,0.486,3073.4,3072.2,0.1469]
[1763327974769,0.486,3073.4,3072.2,6.5790707]
[1763327974951,0.487,3073.6,3072.3,2.29064787]
[1763327975457,0.487,3073.6,3072.4,0.499]
[1763327976787,0.001,3073.6,3072.4,0.499]
[1763327977282,0.487,3073.6,3072.4,0.499]
[1763327977785,0.001,3073.6,3072.4,0.499]
[1763327978088,0.001,3073.6,3072.6,6.4321707]
[1763327978269,0.001,3073.6,3072.7,0.499]
[1763327978585,0.487,3073.6,3072.6,6.4321707]
[1763327978790,0.001,3073.6,3072.6,6.9311707]
[1763327978952,0.001,3073.6,3072.7,1.1337408]
[1763327979174,0.001,3073.6,3072.8,0.80649115]
[1763327979342,0.001,3073.6,3072.5,0.22906479]
[1763327979549,0.487,3073.6,3072.4,1.1337408]
[1763327980066,0.487,3073.6,3072.5,0.499]
[1763327980253,0.99781303,3073.6,3072.5,0.499]
[1763327980661,0.486,3073.5,3072.1,1.1337408]
[1763327980862,0.486,3073.5,3072.2,0.98317115]
[1763327981550,0.486,3073.5,3072.3,0.499]
[1763327981755,0.486,3073.9,3072.5,1.1337408]
[1763327981956,0.486,3073.9,3072.6,0.499]
[1763327982162,0.486,3073.9,3072.7,0.16327408]
[1763327982844,0.405504,3073.8,3072.5,1.1337408]
[1763327983055,0.405504,3073.8,3072.2,0.98317115]
[1763327983056,0.405504,3073.8,3072.2,0.1469]
[1763327983255,0.05,3074.2,3072.2,0.1469]
[1763327983256,0.405504,3073.6,3072.2,0.1469]
[1763327983703,0.405504,3073.4,3072.2,0.1469]
[1763327983868,0.405504,3073.4,3072.2,0.6459]
[1763327984072,0.486,3073.3,3072.2,0.6459]
[1763327984401,0.5108687,3073.2,3072.2,0.6459]
[1763327984759,0.5108687,3073.2,3072.3,0.499]
[1763327984980,0.5108687,3073.2,3072.5,1.1337408]
[1763327985284,0.001,3073.1,3072.5,1.1337408]
[1763327985693,0.001,3073.1,3072.3,0.499]
[1763327986055,0.001,3073.1,3072.6,1.1337408]
[1763327986488,0.001,3073.1,3072.4,1.1337408]
[1763327986713,0.001,3073.1,3072.5,0.75659115]
[1763327987007,0.002,3073.8,3072.5,0.75659115]
[1763327987008,0.002,3073.8,3073.0,0.4958]
[1763327987172,0.002,3073.8,3072.7,6.4321707]
[1763327987173,0.002,3073.8,3073.7,0.6493]
[1763327987374,0.002,3073.8,3073.7,2.2820408]
[1763327988286,0.002,3073.8,3073.7,3.15346195]
[1763327988605,0.002,3073.8,3073.7,1.7830408]
[1763327988986,0.002,3073.8,3072.5,11.14659115]
[1763327988987,0.4762,3073.8,3073.2,1.1337408]
[1763327989291,0.002,3073.8,3073.2,1.1337408]
[1763327989465,0.002,3073.8,3073.7,0.4958]
[1763327990379,0.002,3073.8,3073.3,0.499]
[1763327991724,0.002,3073.8,3073.7,0.4721]
[1763327992716,0.002,3073.8,3073.2,1.1337408]
[1763327993893,0.002,3073.8,3073.1,1.2872408]
[1763327994095,0.002,3073.8,3072.2,10.942404]
[1763327994096,0.002,3073.8,3073.7,0.4721]
[1763327994288,0.002,3073.8,3072.7,1.1337408]
[1763327994289,0.98352178,3073.8,3073.1,1.1337408]
[1763327994582,0.98152178,3073.7,3072.6,6.4321707]
[1763327994784,0.98152178,3073.6,3072.7,1.1337408]
[1763327995020,0.98152178,3073.5,3072.7,1.1337408]
[1763327995217,0.98152178,3073.4,3072.7,1.1337408]
[1763327995416,0.29706157,3073.3,3072.6,6.4321707]
[1763327995617,0.98168436,3073.2,3072.6,6.4321707]
[1763327995916,1.29883173,3073.6,3072.6,6.8932707]
[1763327995917,0.83323173,3073.6,3072.6,6.8932707]
[1763327996124,0.98169417,3073.5,3072.6,6.8932707]
[1763327996422,0.98169417,3073.4,3072.6,6.8932707]
[1763327996593,0.6845396,3073.3,3072.6,6.8932707]
[1763327996789,0.002,3073.8,3073.5,0.4721]
[1763327997027,0.98225231,3073.7,3073.5,0.6256]
[1763327997224,0.002,3073.8,3073.3,0.1535]
[1763327998655,0.002,3073.8,3073.5,1.1337408]
[1763328000033,0.002,3073.8,3073.3,0.1535]
[1763328000208,0.002,3073.8,3073.3,0.6146]
[1763328000412,0.002,3074.2,3073.8,1.1337408]
[1763328000703,0.002,3074.2,3074.1,1.1337408]
[1763328001136,0.002,3074.2,3073.7,6.4321707]
[1763328001137,0.002,3074.2,3073.4,1.1337408]